bitfinex-derivatives/quotes_SOLF0:USTF0_20240910
["timestamp","ask_amount","ask_price","bid_price","bid_amount"]
[1725950542002,34.9405,133.91,133.84,9.18]
[1725950542709,3.3605,133.9,133.86,3.3615]
[1725950543207,3.3605,133.9,133.84,9.18]
[1725950543405,34.9404,133.91,133.87,3.3613]
[1725950547611,3.3607,133.9,133.87,3.3613]
[1725950548814,34.9404,133.91,133.87,3.3613]
[1725950550116,34.9404,133.91,133.85,9.18]
[1725950550117,3.3607,133.9,133.84,9.18]
[1725950550305,31.58,133.91,133.84,9.18]
[1725950550816,34.9403,133.91,133.87,3.3611]
[1725950551911,3.75298688,133.92,133.82,4.0908]
[1725950551912,31.58,133.88,133.82,1.3797]
[1725950552122,31.58,133.88,133.82,10.5597]
[1725950552919,34.9411,133.88,133.84,3.3619]
[1725950555217,25.7611,133.88,133.85,3.3617]
[1725950555717,22.4,133.88,133.85,3.3617]
[1725950556314,12.5409,133.89,133.85,3.3617]
[1725950556522,34.9709,133.89,133.85,3.3617]
[1725950556723,22.43,133.89,133.86,3.3614]
[1725950557222,12.5406,133.9,133.84,9.18]
[1725950557721,34.9706,133.9,133.84,9.18]
[1725950558311,34.9706,133.9,133.86,3.3613]
[1725950568222,28.3915,133.91,133.87,3.3612]
[1725950568418,22.43,133.92,133.87,9.18]
[1725950568929,25.7902,133.92,133.88,3.3609]
[1725950572735,25.7902,133.92,133.89,3.3607]
[1725950573930,22.43,133.92,133.9,3.3604]
[1725950574324,31.61,133.94,133.88,12.84184238]
[1725950574528,34.9696,133.94,133.9,3.3604]
[1725950575030,31.61,133.94,133.91,3.3601]
[1725950575227,31.61,133.94,133.88,12.84184238]
[1725950576032,34.9695,133.94,133.88,12.84184238]
[1725950576740,34.9695,133.94,133.9,3.3603]
[1725950580642,2.774,133.97,133.92,3.36]
[1725950580643,25.204,133.97,133.92,3.36]
[1725950581033,34.384,133.97,133.92,3.36]
[1725950581635,3.3591,133.96,133.92,3.36]
[1725950581830,22.43,133.94,133.91,3.3601]
[1725950583242,25.7896,133.94,133.91,3.3601]
[1725950588456,22.43,133.94,133.91,3.3601]
[1725950589247,25.204,133.97,133.92,9.18]
[1725950589653,34.384,133.97,133.92,9.18]
[1725950590857,3.359,133.96,133.92,12.5399]
[1725950597967,3.359,133.96,133.93,3.3597]
[1725950598965,36.3626,133.97,133.93,3.3597]
[1725950599471,22.43,133.97,133.93,9.18]
[1725950599668,153.39682422,133.98,133.93,9.18]
[1725950600271,153.39682422,133.98,133.95,3.3591]
[1725950600470,175.82682422,133.98,133.95,3.3591]
[1725950600867,179.18532422,133.98,133.95,3.3591]
[1725950601467,22.43,133.98,133.95,3.3591]
[1725950602275,22.43,133.99,133.95,3.67401045]
[1725950602464,22.43,133.99,133.94,9.18]
[1725950603075,22.43,133.99,133.97,3.3587]
[1725950603270,25.7882,134.0,133.97,3.3587]
[1725950604368,3.3582,134.0,133.97,3.3587]
[1725950604570,25.7882,134.0,133.97,3.3587]
[1725950604766,34.9682,134.0,133.96,3.3589]
[1725950604970,22.43,133.97,133.92,9.18]
[1725950605172,22.43,133.97,133.9,9.18]
[1725950605173,31.61,133.97,133.9,9.18]
[1725950605870,3.359,133.96,133.92,3.3598]
[1725950606075,3.359,133.96,133.9,9.18]
[1725950606277,3.359,133.96,133.89,3.9479]
[1725950606478,3.359,133.96,133.91,9.18]
[1725950607084,3.359,133.96,133.93,3.3597]
[1725950608481,34.9689,133.97,133.93,3.3597]
[1725950610681,3.359,133.96,133.93,3.3597]
[1725950611182,34.9688,133.97,133.93,3.3597]
[1725950616793,34.9688,133.97,133.94,3.3595]
[1725950616996,3.3588,133.97,133.94,3.3595]
[1725950617294,36.2489,133.98,133.94,3.3595]
[1725950618193,36.2489,133.98,133.93,9.18]
[1725950618982,36.2489,133.98,133.94,3.3593]
[1725950626900,27.0689,133.98,133.94,3.3593]
[1725950629401,27.0689,133.98,133.95,3.3592]
[1725950630503,27.0689,133.98,133.94,3.3594]
[1725950630798,23.7103,133.98,133.92,9.18]
[1725950632100,27.0689,133.98,133.94,3.3595]
[1725950636505,27.0689,133.98,133.93,3.3596]
[1725950636506,22.43,133.96,133.93,3.3596]
[1725950637797,9.18,133.97,133.92,9.18]
[1725950638105,31.61,133.97,133.92,9.18]
[1725950638604,34.9688,133.97,133.93,3.3596]
[1725950639102,22.43,133.95,133.92,3.36]
[1725950639302,22.43,133.95,133.89,3.9479]
[1725950639303,31.61,133.95,133.89,2.5922]
[1725950639602,1.2803,133.98,133.89,2.5922]
[1725950639603,31.61,133.94,133.89,2.5922]
[1725950639800,34.9695,133.94,133.89,2.5922]
[1725950640002,34.9695,133.94,133.9,3.3603]
[1725950645301,25.7895,133.94,133.9,3.3603]
[1725950650110,9.18,133.96,133.9,9.18]
[1725950650298,31.61,133.96,133.91,9.18]
[1725950650504,31.61,133.96,133.92,3.3599]
[1725950651206,3.3593,133.95,133.92,3.3599]
[1725950657315,3.3595,133.94,133.91,3.3602]
[1725950657505,25.7895,133.94,133.89,9.18]
[1725950657812,22.43,133.94,133.89,9.18]
[1725950658012,3.3599,133.93,133.9,3.3604]
[1725950658207,3.3599,133.93,133.89,9.18]
[1725950658604,3.36,133.92,133.89,12.5406]
[1725950658812,25.79,133.92,133.83,2.6802]
[1725950659010,25.79,133.92,133.87,9.18]
[1725950659513,25.79,133.92,133.88,3.3609]
[1725950663418,3.3603,133.91,133.87,12.5411]
[1725950668422,25.7902,133.92,133.88,3.361]
[1725950668919,9.18,133.95,133.89,12.5406]
[1725950669221,22.43,133.94,133.89,12.5406]
[1725950669818,22.43,133.94,133.89,9.18]
[1725950670010,2.5752,133.98,133.9,9.18]
[1725950670216,22.43,133.95,133.9,9.18]
[1725950670617,25.7894,133.95,133.91,3.3602]
[1725950671327,22.43,133.94,133.91,3.3602]
[1725950672422,25.7891,133.96,133.92,12.5398]
[1725950672826,22.43,133.96,133.92,9.18]
[1725950673026,22.43,133.96,133.93,3.3597]
[1725950673329,22.43,133.96,133.92,9.18]
[1725950673525,3.3593,133.95,133.92,9.18]
[1725950674226,22.43,133.96,133.92,9.18]
[1725950674426,25.7891,133.96,133.92,12.5399]
[1725950675026,25.7891,133.96,133.93,3.3597]
[1725950680430,3.3593,133.95,133.93,3.3597]
[1725950680929,3.3593,133.95,133.89,3.73151086]
[1725950680930,3.3595,133.95,133.89,3.73151086]
[1725950681130,3.3595,133.95,133.9,9.18]
[1725950681335,3.3595,133.95,133.9,12.99116008]
[1725950681827,3.3595,133.95,133.91,3.36]
[1725950682730,3.3596,133.94,133.91,3.36]
[1725950682930,22.43,133.96,133.91,3.36]
[1725950683325,3.3594,133.95,133.91,3.36]
[1725950695343,3.3594,133.95,133.92,3.36]
[1725950701158,25.7891,133.96,133.93,3.3597]
[1725950701361,22.43,133.96,133.92,9.18]
[1725950701658,25.789,133.96,133.93,3.3596]
[1725950702352,3.359,133.96,133.93,3.3596]
[1725950706058,22.43,133.97,133.92,9.18]
[1725950706361,22.43,133.97,133.93,9.18]
[1725950706562,1.3822,134.01,133.94,9.18]
[1725950706758,26.13547662,134.0,133.94,9.18]
[1725950707357,3.3584,133.99,133.96,3.3588]
[1725950707557,3.3584,133.99,133.96,9.18]
[1725950707957,3.3584,133.99,133.96,12.5388]
[1725950712555,25.7881,134.0,133.96,12.5388]
[1725950712759,22.43,134.02,133.98,9.18]
[1725950713356,22.43,134.02,133.97,9.18]
[1725950713956,31.61,134.0,133.93,9.18]
[1725950714159,22.43,133.97,133.91,4.0313]
[1725950714363,31.61,133.97,133.92,3.3599]
[1725950715168,3.3591,133.96,133.92,3.3599]
[1725950722675,3.3593,133.95,133.92,3.3599]
[1725950722873,22.43,133.94,133.91,2.6758]
[1725950723978,25.7896,133.94,133.91,2.6758]
[1725950725477,25.7896,133.94,133.91,6.036]
[1725950727569,22.43,133.94,133.91,6.036]
[1725950729566,22.43,133.94,133.91,2.6758]
[1725950729772,22.43,133.94,133.91,1.3436]
[1725950730778,25.7896,133.94,133.91,1.3436]
[1725950731976,25.7894,133.95,133.91,4.7038]
[1725950732172,9.18,133.98,133.92,9.18]
[1725950732375,3.3591,133.96,133.92,12.5399]
[1725950732879,12.5391,133.96,133.92,12.5399]
[1725950733477,34.9691,133.96,133.92,12.5399]
[1725950735380,34.9691,133.96,133.92,3.3599]
[1725950739582,3.3591,133.96,133.92,3.3599]
[1725950739778,34.9691,133.96,133.92,3.3599]
[1725950740184,3.3594,133.95,133.92,3.3599]
[1725950741086,3.3594,133.95,133.91,4.7037]
[1725950741491,3.3594,133.95,133.9,3.81116008]
[1725950741492,22.43,133.94,133.9,3.3603]
[1725950741679,9.18,133.93,133.87,9.18]
[1725950741879,12.5399,133.93,133.87,9.18]
[1725950742080,12.5399,133.93,133.88,9.18]
[1725950742386,3.3599,133.93,133.89,3.79920818]
[1725950743290,3.3599,133.93,133.89,7.15980818]
[1725950746292,3.3599,133.93,133.89,3.3606]
[1725950746789,3.36,133.92,133.88,16.35532155]
[1725950746985,3.36,133.92,133.88,12.5408]
[1725950747385,3.36,133.92,133.89,3.3607]
[1725950747591,34.9699,133.93,133.89,3.3607]
[1725950749197,34.9699,133.93,133.89,3.3606]
[1725950749388,3.3599,133.93,133.88,12.89479793]
[1725950749698,1.2743,133.97,133.89,9.18]
[1725950749887,31.61,133.95,133.91,3.3601]
[1725950750288,34.9695,133.95,133.91,3.3601]
[1725950751990,34.9695,133.95,133.92,3.36]
[1725950753598,34.9695,133.95,133.89,9.18]
[1725950753599,3.3599,133.93,133.9,3.3604]
[1725950753799,3.3599,133.93,133.88,12.89479793]
[1725950754003,3.3599,133.93,133.88,9.18]
[1725950754201,3.3599,133.93,133.9,3.3604]
[1725950757803,3.3599,133.93,133.89,7.18753771]
[1725950759905,3.36,133.92,133.89,7.18753771]
[1725950763703,22.43,133.94,133.89,13.00683771]
[1725950763910,31.61,133.96,133.9,9.18]
[1725950764106,31.61,133.96,133.89,3.82683771]
[1725950764107,25.789,133.96,133.92,3.3599]
[1725950764297,9.18,133.97,133.91,9.18]
[1725950764709,3.359,133.96,133.91,10.4908]
[1725950765410,3.359,133.96,133.92,3.3598]
[1725950765907,3.3593,133.95,133.92,3.3598]
[1725950766314,12.5393,133.95,133.91,4.6709]
[1725950766609,12.5393,133.95,133.91,3.3601]
[1725950766610,34.9693,133.95,133.91,3.3601]
[1725950767005,3.3595,133.94,133.9,4.7553]
[1725950767315,34.9695,133.94,133.9,3.3605]
[1725950771115,3.3595,133.94,133.91,3.3602]
[1725950771304,12.5393,133.95,133.91,3.3602]
[1725950771910,34.9693,133.95,133.91,3.3602]
[1725950772512,3.3595,133.94,133.91,3.3602]
[1725950773115,3.3595,133.94,133.9,9.18]
[1725950773116,3.3595,133.94,133.9,3.3604]
[1725950773905,12.5395,133.94,133.9,3.3604]
[1725950777324,3.3598,133.93,133.9,3.3604]
[1725950777618,31.61,133.94,133.9,3.3604]
[1725950777816,9.18,133.95,133.91,3.3602]
[1725950778017,23.7509,133.97,133.9,9.18]
[1725950778322,32.9309,133.97,133.9,9.18]
[1725950778717,3.3593,133.95,133.9,9.18]
[1725950778910,34.9693,133.95,133.9,9.18]
[1725950779417,34.9693,133.95,133.91,3.3601]
[1725950783116,3.3595,133.94,133.91,3.3601]
[1725950785025,12.5393,133.95,133.92,3.36]
[1725950785225,23.8212,133.99,133.92,9.18]
[1725950785424,31.61,133.98,133.92,9.18]
[1725950785926,34.9687,133.98,133.94,3.3593]
[1725950790923,9.18,133.98,133.95,3.359]
[1725950791118,3.3583,133.99,133.95,3.359]
[1725950791315,184.97821377,134.0,133.93,9.18]
[1725950791316,175.79821377,134.0,133.93,9.18]
[1725950791519,153.36821377,134.0,133.96,9.18]
[1725950791720,1.4048,134.05,133.99,9.18]
[1725950792226,1.4048,134.05,134.0,3.3578]
[1725950792227,22.43,134.03,134.0,3.3578]
[1725950793220,9.18,134.04,133.99,9.18]
[1725950793619,3.3569,134.05,134.0,9.18]
[1725950794215,3.3569,134.05,134.0,12.95603583]
[1725950795226,3.3569,134.05,134.02,3.3575]
[1725950795617,12.5369,134.05,134.02,3.3575]
[1725950796018,9.18,134.03,133.99,1.3191]
[1725950796224,9.18,134.03,133.97,9.18]
[1725950796225,9.18,134.02,133.97,9.18]
[1725950796717,9.18,134.02,133.97,12.97432624]
[1725950798831,9.18,134.02,133.99,3.3582]
[1725950804336,9.18,134.02,133.97,3.79432624]
[1725950804537,9.18,134.02,133.96,9.18]
[1725950804834,9.18,134.02,133.96,12.98589036]
[1725950805442,12.5375,134.02,133.98,3.3584]
[1725950806139,3.3575,134.02,133.98,12.5384]
[1725950806942,3.3575,134.02,133.99,3.3582]
[1725950807142,9.18,134.03,133.99,3.3582]
[1725950807143,12.5373,134.03,133.99,3.3582]
[1725950807342,10.4688,134.05,133.99,9.18]
[1725950807646,3.3571,134.04,134.0,3.3579]
[1725950807839,32.8988,134.05,133.99,9.18]
[1725950808142,3.3573,134.03,133.99,12.5381]
[1725950815141,3.3572,134.04,134.0,3.3579]
[1725950816540,3.3572,134.03,134.0,3.3579]
[1725950819546,32.8988,134.05,133.97,2.6832]
[1725950819547,31.61,134.02,133.97,1.362]
[1725950819939,3.3579,134.01,133.98,3.3584]
[1725950821345,34.9676,134.02,133.98,3.3584]
[1725950821547,25.7876,134.02,133.98,3.3584]
[1725950821753,22.43,134.02,133.98,3.3584]
[1725950822352,22.43,134.02,133.97,13.9006]
[1725950822353,3.3577,134.01,133.97,13.9006]
[1725950824456,3.3582,133.99,133.95,3.3591]
[1725950824652,31.61,134.0,133.93,10.4862]
[1725950825846,9.18,134.0,133.95,9.18]
[1725950826054,31.61,134.02,133.96,12.83480174]
[1725950826354,22.43,134.02,133.97,9.18]
[1725950826561,3.3576,134.02,133.98,3.3584]
[1725950827660,3.3578,134.01,133.97,12.5386]
[1725950829968,3.3578,134.01,133.98,3.3585]
[1725950830274,3.3576,134.02,133.98,3.3585]
[1725950830673,31.61,134.03,133.98,3.3585]
[1725950830859,3.3578,134.01,133.97,12.5387]
[1725950831365,3.3582,134.0,133.96,7.11375147]
[1725950832262,31.61,134.01,133.97,3.3586]
[1725950833172,3.358,134.0,133.97,3.3586]
[1725950834468,34.9679,134.01,133.97,3.3586]
[1725950838080,3.3582,133.99,133.94,1.4087]
[1725950838270,31.61,133.98,133.93,1.3062]
[1725950838676,31.61,133.98,133.93,10.4862]
[1725950839083,34.9687,133.98,133.94,3.3593]
[1725950839380,31.61,133.98,133.94,3.3593]
[1725950839770,34.9686,133.98,133.94,3.3593]
[1725950841380,3.3586,133.98,133.94,3.3593]
[1725950842479,25.7886,133.98,133.94,3.3593]
[1725950845181,3.3586,133.98,133.94,3.3593]
[1725950845482,22.43,134.02,133.97,9.18]
[1725950845680,22.43,134.02,133.97,12.88622332]
[1725950845979,25.7877,134.02,133.98,3.3584]
[1725950848789,3.3578,134.01,133.98,3.3584]
[1725950849678,34.9676,134.02,133.98,3.3584]
[1725950850287,34.9676,134.02,133.99,3.3581]
[1725950852184,3.3576,134.02,133.99,3.3581]
[1725950853987,31.61,134.03,133.98,3.3584]
[1725950854487,3.358,134.01,133.98,3.3584]
[1725950857087,3.358,134.0,133.97,3.3586]
[1725950858589,3.3582,133.99,133.94,1.2933]
[1725950858794,31.61,133.99,133.93,1.3062]
[1725950859193,9.18,133.97,133.93,1.3062]
[1725950859391,12.5389,133.97,133.93,1.3062]
[1725950860687,3.3586,133.98,133.94,3.3595]
[1725950866590,31.61,133.99,133.94,3.3595]
[1725950866591,22.43,133.99,133.95,3.3591]
[1725950867294,25.7884,133.99,133.95,3.3591]
[1725950872103,3.3584,133.99,133.96,3.3589]
[1725950872294,34.9681,134.0,133.96,3.3589]
[1725950874806,3.3581,134.0,133.97,3.3587]
[1725950875502,22.41,134.02,133.97,9.18]
[1725950875901,31.59,134.03,133.97,9.18]
[1725950877198,3.3576,134.02,133.99,3.3582]
[1725950877394,1.3424,134.04,133.98,9.18]
[1725950877593,4.6994,134.04,134.01,3.3576]
[1725950878199,3.357,134.04,134.01,3.3576]
[1725950881303,12.5369,134.05,134.02,3.3575]
[1725950881503,22.41,134.06,134.01,9.18]
[1725950881706,25.7666,134.06,134.01,9.18]
[1725950882506,25.7666,134.06,134.03,3.3571]
[1725950883401,3.3568,134.05,134.03,3.3571]
[1725950883607,3.3568,134.05,134.02,3.3574]
[1725950886212,25.7666,134.06,134.02,3.3574]
[1725950886413,153.28910199,134.07,134.04,3.357]
[1725950888009,156.64540199,134.07,134.04,3.357]
[1725950889013,153.28910199,134.07,134.04,3.357]
[1725950889420,153.28910199,134.07,134.05,3.3567]
[1725950891312,153.28910199,134.07,134.06,3.3565]
[1725950892409,153.28910199,134.07,134.04,9.18]
[1725950892410,156.64540199,134.07,134.05,3.3566]
[1725950892713,156.64540199,134.07,134.0,4.0257]
[1725950892714,31.59,134.06,134.0,4.0257]
[1725950892917,31.59,134.06,134.0,13.2057]
[1725950893920,34.25425186,134.21,134.05,9.18]
[1725950894214,34.25425186,134.21,134.0,4.0257]
[1725950894215,9.18,134.14,134.0,4.0257]
[1725950894416,13.98003415,134.13,134.0,4.0257]
[1725950894621,12.851298,134.13,134.07,9.18]
[1725950894821,3.3554,134.11,134.07,12.5361]
[1725950896209,3.3554,134.11,134.08,3.356]
[1725950896411,12.5354,134.11,134.06,9.18]
[1725950896719,3.3556,134.1,134.05,9.18]
[1725950896920,31.59,134.11,134.07,3.3562]
[1725950897112,3.3555,134.1,134.07,3.3562]
[1725950897313,22.41,134.09,134.0,4.0257]
[1725950897618,3.3561,134.08,134.04,3.3568]
[1725950898720,3.3563,134.07,134.04,3.3568]
[1725950898930,3.3563,134.07,134.03,12.5371]
[1725950899616,3.3561,134.08,134.04,3.357]
[1725950900318,3.3561,134.08,134.04,12.537]
[1725950902222,3.3563,134.07,134.04,9.18]
[1725950903028,3.3563,134.07,134.03,12.5371]
[1725950903216,3.3565,134.06,134.02,3.3574]
[1725950903419,3.3565,134.06,134.02,12.5374]
[1725950905924,3.3564,134.07,134.02,12.5374]
[1725950906120,3.3564,134.07,134.03,3.3572]
[1725950906628,3.3565,134.06,134.02,9.18]
[1725950906829,3.3565,134.06,134.02,12.5373]
[1725950910219,3.3565,134.06,134.03,3.3572]
[1725950912220,3.3568,134.05,134.02,3.3574]
[1725950912426,3.3568,134.05,134.02,12.5374]
[1725950913119,3.3566,134.06,134.02,12.5374]
[1725950913935,3.3563,134.07,134.05,9.18]
[1725950914327,22.41,134.09,134.05,9.18]
[1725950914530,3.3561,134.08,134.05,9.18]
[1725950915523,3.3563,134.07,134.05,9.18]
[1725950915720,3.3563,134.07,134.04,3.3568]
[1725950916239,3.3561,134.08,134.05,3.3567]
[1725950916527,22.41,134.09,134.05,9.18]
[1725950916920,25.7659,134.09,134.06,3.3563]
[1725950917522,23.7511,134.12,134.07,9.18]
[1725950918126,3.3552,134.11,134.08,3.3558]
[1725950918533,23.7511,134.12,134.07,9.18]
[1725950918934,22.41,134.12,134.09,9.18]
[1725950919137,25.7652,134.12,134.09,12.5357]
[1725950920435,156.59046919,134.13,134.1,12.5355]
[1725950920640,153.23556919,134.13,134.1,9.18]
[1725950920933,175.64556919,134.13,134.11,3.3551]
[1725950921333,175.64556919,134.13,134.1,12.5354]
[1725950921737,179.00036919,134.13,134.1,12.5354]
[1725950922629,3.355,134.12,134.1,9.18]
[1725950925531,175.64556919,134.13,134.1,9.18]
[1725950926238,3.3551,134.12,134.1,9.18]
[1725950927638,3.3554,134.11,134.07,5.9623]
[1725950927936,184.82556919,134.13,134.07,11.7862]
[1725950928541,22.41,134.11,134.06,9.18]
[1725950929539,22.41,134.08,134.01,2.6405]
[1725950929836,22.41,134.08,134.04,9.18]
[1725950930037,22.41,134.09,134.05,9.18]
[1725950930840,3.3561,134.08,134.05,12.5366]
[1725950931236,3.3561,134.08,134.06,9.18]
[1725950931436,3.3559,134.09,134.06,12.5364]
[1725950937649,3.3559,134.09,134.06,9.18]
[1725950941648,3.3559,134.09,134.06,12.5365]
[1725950942548,3.3556,134.1,134.06,12.5365]
[1725950942939,3.3569,134.05,134.01,5.9982]
[1725950943141,3.3569,134.05,134.01,11.8205]
[1725950943950,3.3571,134.04,134.01,11.8205]
[1725950950256,3.3571,134.04,134.01,15.1782]
[1725950950648,3.3571,134.04,134.02,9.18]
[1725950952651,22.41,134.07,134.03,9.18]
[1725950953248,3.3566,134.06,134.03,9.18]
[1725950954554,3.3569,134.05,134.01,5.9982]
[1725950954753,3.3569,134.05,134.02,9.18]
[1725950955762,3.3571,134.04,134.02,9.18]
[1725950956059,22.41,134.06,134.01,10.5244]
[1725950956256,22.41,134.06,134.01,9.18]
[1725950956455,3.3572,134.04,134.01,9.18]
[1725950959663,3.3572,134.03,134.0,3.3579]
[1725950962860,3.3572,134.03,134.01,9.18]
[1725950963159,3.3571,134.04,134.01,9.18]
[1725950963760,3.3571,134.04,134.01,12.5377]
[1725950968862,3.3573,134.03,134.0,3.358]
[1725950970269,3.3577,134.01,133.97,9.18]
[1725950971061,3.3577,134.01,133.97,13.00398122]
[1725950971466,3.3577,134.01,133.97,12.5386]
[1725950971661,3.358,134.0,133.97,12.5386]
[1725950972272,31.59,134.01,133.93,3.9423]
[1725950972465,22.41,133.99,133.93,3.9423]
[1725950972669,31.59,133.98,133.93,13.1223]
[1725950973474,3.3589,133.97,133.93,16.4819]
[1725950974075,3.3586,133.98,133.94,3.3595]
[1725950974369,22.41,133.99,133.96,9.18]
[1725950974569,25.7683,133.99,133.96,9.18]
[1725950975172,3.3583,133.99,133.96,9.18]
[1725950978672,3.3583,133.99,133.95,3.3591]
[1725950982979,25.7683,133.99,133.95,3.3591]
[1725950983978,3.3586,133.98,133.95,3.3591]
[1725950985077,3.3586,133.98,133.94,12.5394]
[1725950994490,25.7684,133.99,133.95,3.3592]
[1725950996595,3.3585,133.98,133.95,3.3592]
[1725951001902,25.7683,133.99,133.95,3.3592]
[1725951002107,3.9559,134.06,133.97,9.18]
[1725951002108,22.41,134.05,133.97,9.18]
[1725951002401,3.9559,134.06,133.97,12.98814726]
[1725951002402,3.3577,134.02,133.97,12.98814726]
[1725951002599,3.3577,134.02,133.98,3.3584]
[1725951003305,3.3578,134.01,133.98,3.3584]
[1725951004508,25.7678,134.01,133.98,3.3584]
[1725951005998,3.358,134.0,133.97,3.3586]
[1725951006197,31.59,134.0,133.93,3.9423]
[1725951006506,31.59,134.0,133.93,13.1223]
[1725951007300,31.59,134.0,133.95,3.3592]
[1725951008407,3.3584,133.99,133.95,3.3592]
[1725951012095,3.3584,133.99,133.96,3.3589]
[1725951012295,22.41,134.05,133.97,9.18]
[1725951012505,22.41,134.02,133.97,9.18]
[1725951012804,25.7677,134.02,133.98,3.3585]
[1725951013905,25.7677,134.02,133.99,3.3581]
[1725951014996,3.3578,134.01,133.98,3.3584]
[1725951016610,3.3578,134.01,133.99,3.3582]
[1725951017011,25.7676,134.02,133.99,3.3582]
[1725951022810,3.3578,134.01,133.99,3.3582]
[1725951023610,22.41,134.02,133.96,3.80749701]
[1725951023819,22.41,134.02,133.97,9.18]
[1725951024022,22.41,134.02,133.97,12.82221022]
[1725951024618,3.3579,134.01,133.98,3.3583]
[1725951030518,3.3579,134.01,133.99,3.3582]
[1725951031618,3.3579,134.01,133.98,3.3584]
[1725951044431,3.358,134.0,133.97,3.3587]
[1725951044624,9.18,134.02,133.96,12.9936398]
[1725951044625,22.41,134.01,133.96,12.9936398]
[1725951044819,3.3584,133.99,133.96,9.18]
[1725951045023,3.3584,133.99,133.96,16.23160221]
[1725951047925,22.41,134.01,133.93,3.9423]
[1725951047926,22.41,134.0,133.95,9.18]
[1725951049122,22.41,133.98,133.93,3.9423]
[1725951049329,22.41,133.98,133.93,13.1223]
[1725951050124,3.3589,133.97,133.93,16.482]
[1725951054433,22.41,133.98,133.93,16.482]
[1725951054434,3.359,133.96,133.93,16.482]
[1725951056430,3.359,133.96,133.93,15.1729]
[1725951060227,3.3588,133.97,133.94,12.5395]
[1725951061836,6.7139,134.05,133.95,9.18]
[1725951061837,22.41,134.0,133.95,9.18]
[1725951062038,22.41,134.0,133.96,3.76698696]
[1725951062630,3.3584,133.99,133.96,7.12588696]
[1725951062833,22.41,134.0,133.96,3.3589]
[1725951063635,3.3585,133.99,133.95,12.5392]
[1725951065737,3.3585,133.99,133.96,3.359]
[1725951065937,25.768,134.0,133.96,12.90143513]
[1725951066134,3.358,134.0,133.96,12.90143513]
[1725951066745,3.358,134.0,133.97,3.3586]
[1725951069545,25.7678,134.01,133.98,3.3585]
[1725951070149,3.3578,134.01,133.98,3.3585]
[1725951071441,3.3578,134.01,133.99,3.3582]
[1725951071939,22.41,134.03,133.98,9.18]
[1725951072141,22.41,134.03,134.0,3.358]
[1725951073045,25.7674,134.03,134.0,3.358]
[1725951074243,3.9559,134.06,134.0,9.18]
[1725951074244,32.8653,134.06,134.0,9.18]
[1725951074638,3.3569,134.05,134.02,3.3574]
[1725951075746,3.3569,134.05,134.02,12.5374]
[1725951076142,25.7666,134.06,134.03,3.3572]
[1725951079242,25.7666,134.06,134.02,12.5374]
[1725951080346,3.3567,134.05,134.02,12.5374]
[1725951081145,3.3567,134.05,134.02,3.3574]
[1725951081852,25.7666,134.06,134.03,3.3571]
[1725951082243,22.41,134.06,134.01,9.18]